bitfinex-derivatives/quotes_BTCF0:USTF0_20250930
["timestamp","ask_amount","ask_price","bid_price","bid_amount"]
[1759217702129,1.6177785,113910.0,113900.0,0.52041511]
[1759217703231,1.29306724,113910.0,113900.0,0.52041511]
[1759217703427,1.6177785,113910.0,113900.0,0.52041511]
[1759217704426,1.68724436,113910.0,113900.0,0.52041511]
[1759217712435,1.68648436,113910.0,113900.0,0.52041511]
[1759217714034,0.88632436,113910.0,113900.0,0.52041511]
[1759217714336,0.8863864,113910.0,113900.0,0.52041511]
[1759217714535,1.6863864,113910.0,113900.0,0.52041511]
[1759217715136,1.6866264,113910.0,113900.0,0.52041511]
[1759217719939,1.61716054,113910.0,113900.0,0.52041511]
[1759217721441,1.97796054,113910.0,113900.0,0.52041511]
[1759217723041,1.25636054,113910.0,113900.0,0.52041511]
[1759217723242,1.97796054,113910.0,113900.0,0.52041511]
[1759217723547,2.04741931,113910.0,113900.0,0.52041511]
[1759217724048,2.37219261,113910.0,113900.0,0.52041511]
[1759217725142,2.04741931,113910.0,113900.0,0.52041511]
[1759217728253,2.37219261,113910.0,113900.0,0.48439511]
[1759217728449,2.37219261,113910.0,113900.0,0.08439511]
[1759217728640,2.37219261,113910.0,113900.0,0.10632511]
[1759217728935,2.37219261,113910.0,113900.0,0.03710355]
[1759217732748,1.57195261,113910.0,113900.0,0.03710355]
[1759217733045,2.37115261,113910.0,113900.0,0.03710355]
[1759217733439,2.37131261,113910.0,113900.0,0.03710355]
[1759217734741,2.37127261,113910.0,113900.0,0.03710355]
[1759217735843,2.37119261,113910.0,113900.0,0.03710355]
[1759217736252,2.37119261,113910.0,113900.0,0.03670355]
[1759217736450,2.37119261,113910.0,113900.0,0.03710355]
[1759217738550,2.37127261,113910.0,113900.0,0.03710355]
[1759217739648,2.37127261,113910.0,113900.0,0.03670355]
[1759217739848,2.37119261,113910.0,113900.0,0.03670355]
[1759217740154,2.37119261,113910.0,113900.0,0.03710355]
[1759217740355,1.57195261,113910.0,113900.0,0.03710355]
[1759217740654,2.37115261,113910.0,113900.0,0.03710355]
[1759217742753,1.57195261,113910.0,113900.0,0.03710355]
[1759217742957,2.37111261,113910.0,113900.0,0.03710355]
[1759217744151,1.57195261,113910.0,113900.0,0.03710355]
[1759217744458,2.37091261,113910.0,113900.0,0.03710355]
[1759217747061,1.64931261,113910.0,113900.0,0.03710355]
[1759217747252,2.37091261,113910.0,113900.0,0.03710355]
[1759217756661,2.37090226,113910.0,113900.0,0.03710355]
[1759217757961,3.09567556,113910.0,113900.0,0.03710355]
[1759217758267,0.105984,113890.0,113880.0,0.10379641]
[1759217758465,2.28174564,113890.0,113880.0,0.10379641]
[1759217758866,2.28174564,113890.0,113880.0,0.10459641]
[1759217759063,2.28185766,113890.0,113880.0,0.10379641]
[1759217759268,2.28181766,113890.0,113880.0,0.10379641]
[1759217759570,2.28877766,113890.0,113880.0,0.10419641]
[1759217760070,2.29757152,113890.0,113880.0,0.10419641]
[1759217760265,1.51009152,113890.0,113880.0,0.10419641]
[1759217760460,2.30985152,113890.0,113880.0,0.10419641]
[1759217760764,2.31985152,113890.0,113880.0,0.10419641]
[1759217760960,2.31997152,113890.0,113880.0,0.10419641]
[1759217762270,2.31989152,113890.0,113880.0,0.10419641]
[1759217763159,1.52009152,113890.0,113880.0,0.10419641]
[1759217763360,2.31985152,113890.0,113880.0,0.10419641]
[1759217763571,2.31981152,113890.0,113880.0,0.10419641]
[1759217764169,1.52675152,113890.0,113880.0,0.06880641]
[1759217764372,2.32005152,113890.0,113880.0,0.10368641]
[1759217764575,2.32005152,113890.0,113880.0,0.10328641]
[1759217764874,2.32005152,113890.0,113880.0,0.10368641]
[1759217765172,1.52009152,113890.0,113880.0,0.10368641]
[1759217765364,2.32005152,113890.0,113880.0,0.10368641]
[1759217765771,2.32005152,113890.0,113880.0,0.05639485]
[1759217766071,0.87054492,113890.0,113880.0,0.05639485]
[1759217766369,2.31997152,113890.0,113880.0,0.05639485]
[1759217766572,1.52009152,113890.0,113880.0,0.05639485]
[1759217766764,2.31989152,113890.0,113880.0,0.05639485]
[1759217767160,2.31985152,113890.0,113880.0,0.14415655]
[1759217767466,1.52009152,113890.0,113880.0,0.14415655]
[1759217767667,2.31981152,113890.0,113880.0,0.14415655]
[1759217769673,1.52009152,113890.0,113880.0,0.14415655]
[1759217769875,2.31965152,113890.0,113880.0,0.14415655]
[1759217771468,2.31953152,113890.0,113880.0,0.14415655]
[1759217771677,1.12183759,113890.0,113880.0,0.46892985]
[1759217771868,1.92123759,113890.0,113880.0,0.14415655]
[1759217772675,1.20959159,113890.0,113880.0,0.14415655]
[1759217772874,2.00903159,113890.0,113880.0,0.14415655]
[1759217773771,2.00903159,113890.0,113880.0,0.19144811]
[1759217774280,2.00912419,113890.0,113880.0,0.19144811]
[1759217774875,2.00912419,113890.0,113880.0,0.10368641]
[1759217775381,1.68425829,113890.0,113880.0,0.10368641]
[1759217775769,2.00912419,113890.0,113880.0,0.05639485]
[1759217776378,2.00912419,113890.0,113880.0,0.10368641]
[1759217776575,2.00912419,113890.0,113880.0,0.05639485]
[1759217777580,2.00912419,113890.0,113880.0,0.14415655]
[1759217781684,2.00912419,113890.0,113880.0,0.19144811]
[1759217781887,2.00912419,113890.0,113880.0,0.14415655]
[1759217782184,2.00912419,113890.0,113880.0,0.19144811]
[1759217786585,1.68425829,113890.0,113880.0,0.19144811]
[1759217786784,2.00912419,113890.0,113880.0,0.19144811]
[1759217794897,1.12193019,113890.0,113880.0,0.19144811]
[1759217795093,0.79706429,113890.0,113880.0,0.91631401]
[1759217795298,1.92033019,113890.0,113880.0,0.59144811]
[1759217799495,1.92033019,113890.0,113880.0,0.19144811]
[1759217801600,2.00808419,113890.0,113880.0,0.19144811]
[1759217808702,1.92033019,113890.0,113880.0,0.19144811]
[1759217809709,1.90000178,113890.0,113880.0,0.19144811]
[1759217810210,1.98775568,113890.0,113880.0,0.19144811]
[1759217812009,2.00806137,113890.0,113880.0,0.19144811]
[1759217812711,1.98775568,113890.0,113880.0,0.19144811]
[1759217813008,2.00806159,113890.0,113880.0,0.19144811]
[1759217815010,2.00806193,113890.0,113880.0,0.19144811]
[1759217821009,0.41801213,113890.0,113880.0,0.91631401]
[1759217821210,0.38343384,113890.0,113880.0,0.86902245]
[1759217821408,0.38343384,113890.0,113880.0,0.94779465]
[1759217821804,0.47118784,113890.0,113880.0,1.66642245]
[1759217822012,0.72652974,113890.0,113880.0,0.54415655]
[1759217822213,0.72662199,113890.0,113880.0,1.34155655]
[1759217822412,0.72662199,113890.0,113880.0,0.6073084]
[1759217823518,0.40175609,113890.0,113880.0,0.9321743]
[1759217823717,0.40175609,113890.0,113880.0,1.7295343]
[1759217823718,0.38352609,113890.0,113880.0,1.7295343]
[1759217823919,0.02272609,113890.0,113880.0,2.0903343]
[1759217825214,0.02272609,113890.0,113880.0,1.7295343]
[1759217826320,0.02272609,113890.0,113880.0,1.66638245]
[1759217826521,0.02272609,113890.0,113880.0,1.7295343]
[1759217826722,0.02272609,113890.0,113880.0,0.9321743]
[1759217826921,0.02272609,113890.0,113880.0,1.7294943]
[1759217827223,0.02272609,113890.0,113880.0,1.66634245]
[1759217827524,0.02272609,113890.0,113880.0,1.7294943]
[1759217827818,0.02272609,113890.0,113880.0,1.66634245]
[1759217829420,0.43025877,113910.0,113900.0,0.1239763]
[1759217829630,0.43025877,113910.0,113900.0,0.4488422]
[1759217829831,0.43025877,113910.0,113900.0,1.2461622]
[1759217830625,0.47113877,113910.0,113900.0,0.9212963]
[1759217830926,0.48413877,113910.0,113900.0,1.2461622]
[1759217831128,0.48413877,113910.0,113900.0,1.29346869]
[1759217831733,0.47026882,113910.0,113900.0,0.96860279]
[1759217831934,0.49314882,113910.0,113900.0,1.29346869]
[1759217835128,0.49314882,113910.0,113900.0,1.29410869]
[1759217836331,0.81782891,113910.0,113900.0,1.29392288]
[1759217837533,0.81782891,113910.0,113900.0,1.24661639]
[1759217839434,0.81782891,113910.0,113900.0,0.1239763]
[1759217839629,0.81782891,113910.0,113900.0,1.29363693]
[1759217839936,0.90556751,113910.0,113900.0,1.29351693]
[1759217840136,0.90556751,113910.0,113900.0,1.29419693]
[1759217840431,0.90556751,113910.0,113900.0,0.49591693]
[1759217840634,0.81782891,113910.0,113900.0,0.49591693]
[1759217840834,0.81782891,113910.0,113900.0,1.29415693]
[1759217841237,0.49314882,113910.0,113900.0,1.29415693]
[1759217841433,0.81782891,113910.0,113900.0,1.29431693]
[1759217842236,0.81782891,113910.0,113900.0,0.49591693]
[1759217842436,0.81782891,113910.0,113900.0,1.29427693]
[1759217842831,0.81782891,113910.0,113900.0,0.49591693]
[1759217843037,0.81782891,113910.0,113900.0,1.29419693]
[1759217843233,0.49314882,113910.0,113900.0,1.29419693]
[1759217843533,0.81782891,113910.0,113900.0,1.29419693]
[1759217843738,0.81782891,113910.0,113900.0,1.29415693]
[1759217846131,0.81782891,113910.0,113900.0,1.24689639]
[1759217848739,0.49314882,113910.0,113900.0,1.24689639]
[1759217849038,0.81782891,113910.0,113900.0,1.24689639]
[1759217849336,0.81782891,113910.0,113900.0,0.9222163]
[1759217849538,0.81782891,113910.0,113900.0,1.24689639]
[1759217850640,0.81782891,113910.0,113900.0,0.1239763]
[1759217851243,0.81782891,113910.0,113900.0,0.9217763]
[1759217851739,0.81782891,113910.0,113900.0,1.24645639]
[1759217852740,0.81782891,113910.0,113900.0,0.1239763]
[1759217852942,0.81782891,113910.0,113900.0,0.9217363]
[1759217853144,0.81782891,113910.0,113900.0,0.1239763]
[1759217858049,0.90556751,113910.0,113900.0,0.1239763]
[1759217858353,1.2365676,113910.0,113900.0,0.15795011]
[1759217858539,2.0340476,113910.0,113900.0,0.15795011]
[1759217858851,2.0340476,113910.0,113900.0,0.15835011]
[1759217859246,2.05427727,113910.0,113900.0,0.07060381]
[1759217864556,1.25679727,113910.0,113900.0,0.07060381]
[1759217864758,2.05411727,113910.0,113900.0,0.15835011]
[1759217865255,2.05411727,113910.0,113900.0,0.02322]
[1759217865652,2.45411727,113910.0,113900.0,0.0004]
[1759217866053,0.1155063,113900.0,113890.0,0.17085321]
[1759217866249,1.92322648,113900.0,113890.0,0.17085321]
[1759217866448,1.92322648,113900.0,113890.0,0.17165321]
[1759217867359,1.92622648,113900.0,113890.0,0.17165321]
[1759217867656,2.28702648,113900.0,113890.0,0.17165321]
[1759217869355,2.61170657,113900.0,113890.0,0.07049381]
[1759217869558,3.03190672,113900.0,113890.0,0.02231]
[1759217869753,0.110794,113890.0,113880.0,0.20879545]
[1759217869962,1.12095418,113890.0,113880.0,0.20879545]
[1759217870160,0.79627409,113890.0,113880.0,0.20959545]
[1759217871058,0.79627409,113890.0,113880.0,0.21359545]
[1759217872964,1.59387409,113890.0,113880.0,0.21359545]
[1759217873556,1.59387409,113890.0,113880.0,0.19564526]
[1759217874261,1.93158418,113890.0,113880.0,0.18297526]
[1759217874454,1.13398418,113890.0,113880.0,0.18297526]
[1759217874657,1.13398418,113890.0,113880.0,0.18217526]
[1759217874658,1.93154418,113890.0,113880.0,0.18217526]
[1759217874860,1.93154418,113890.0,113880.0,0.18257526]
[1759217875266,1.93154418,113890.0,113880.0,0.18217526]
[1759217875462,1.93154418,113890.0,113880.0,0.18257526]
[1759217875663,1.93154418,113890.0,113880.0,0.09481866]
[1759217878772,2.33154418,113890.0,113880.0,0.09481866]
[1759217879068,2.33154418,113890.0,113880.0,0.02511485]
[1759217879369,2.33154418,113890.0,113880.0,0.02551485]
[1759217879766,2.33154418,113890.0,113880.0,0.02511485]
[1759217880068,2.33154418,113890.0,113880.0,0.02551485]
[1759217880470,1.53398418,113890.0,113880.0,0.11327655]
[1759217880669,2.33142418,113890.0,113880.0,0.11327655]
[1759217880972,2.33134418,113890.0,113880.0,0.13519655]
[1759217881567,2.33134418,113890.0,113880.0,0.04743485]
[1759217882776,2.33134418,113890.0,113880.0,0.02551485]
[1759217883175,0.884624,113890.0,113880.0,0.04743485]
[1759217883471,2.33154418,113890.0,113880.0,0.02551485]
[1759217884268,1.53398418,113890.0,113880.0,0.02551485]
[1759217884468,2.33158418,113890.0,113880.0,0.02551485]
[1759217885561,2.33258418,113890.0,113880.0,0.02551485]
[1759217887875,2.35277104,113890.0,113880.0,0.02551485]
[1759217888068,2.65726427,113890.0,113880.0,0.02551485]
[1759217888375,2.67792961,113890.0,113880.0,0.02551485]
[1759217888562,1.87884961,113890.0,113880.0,0.02511485]
[1759217888764,2.67788961,113890.0,113880.0,0.02511485]
[1759217888965,2.67788961,113890.0,113880.0,0.02551485]
[1759217891171,2.67772961,113890.0,113880.0,0.02551485]
[1759217891373,0.1189217,113880.0,113870.0,0.1]
[1759217891574,1.49428361,113880.0,113870.0,0.1]
[1759217891777,1.89428361,113880.0,113870.0,0.1]
[1759217892570,0.1094771,113860.0,113850.0,0.06930381]
[1759217892875,2.27927728,113860.0,113850.0,0.07010381]
[1759217893074,2.27927728,113860.0,113850.0,0.06930381]
[1759217893274,2.27959728,113860.0,113850.0,0.15748861]
[1759217893476,2.35148789,113860.0,113850.0,0.15748861]
[1759217893674,2.36523638,113860.0,113850.0,0.17059861]
[1759217893874,2.36523638,113860.0,113850.0,0.17099861]
[1759217894376,2.36523638,113860.0,113850.0,0.1312148]
[1759217894574,2.36511638,113860.0,113850.0,0.1316148]
[1759217895166,2.36515638,113860.0,113850.0,0.1316148]
[1759217895371,2.36515638,113860.0,113850.0,0.1286148]
[1759217895571,2.36515638,113860.0,113850.0,0.1282148]
[1759217895978,2.36511638,113860.0,113850.0,0.1286148]
[1759217896175,1.56607638,113860.0,113850.0,0.1286148]
[1759217896372,1.24178381,113860.0,113850.0,0.1286148]
[1759217896568,2.03408381,113860.0,113850.0,0.1286148]
[1759217896774,1.23512381,113860.0,113850.0,0.1286148]
[1759217896969,2.03408381,113860.0,113850.0,0.1286148]
[1759217900782,2.03416381,113860.0,113850.0,0.1286148]
[1759217902291,2.03400381,113860.0,113850.0,0.1286148]
[1759217904192,1.23512381,113860.0,113850.0,0.1286148]
[1759217904492,2.03392381,113860.0,113850.0,0.1286148]
[1759217905692,2.04058381,113860.0,113850.0,0.1286148]
[1759217905895,2.04058381,113860.0,113850.0,0.1151048]
[1759217910897,2.04058381,113860.0,113850.0,0.02732]
[1759217913600,2.38586881,113860.0,113850.0,0.02732]
[1759217913800,2.38586881,113860.0,113850.0,0.0054]
[1759217913998,2.36565142,113860.0,113850.0,0.0054]
[1759217914396,2.04058381,113860.0,113850.0,0.005]
[1759217914598,1.24178381,113860.0,113850.0,0.02772]
[1759217914800,2.36513142,113860.0,113850.0,0.02812]
[1759217915203,2.36513142,113860.0,113850.0,0.05278381]
[1759217915400,2.76513142,113860.0,113840.0,0.0481542]
[1759217915608,0.1173725,113840.0,113830.0,0.12403]
[1759217915798,1.60144011,113840.0,113830.0,0.02272]
[1759217915998,1.60144011,113840.0,113830.0,0.02352]
[1759217916301,0.80324011,113840.0,113820.0,0.15089883]
[1759217916506,1.12629552,113830.0,113820.0,0.02352]
[1759217916703,1.91641552,113830.0,113820.0,0.087808]
[1759217916905,1.93695672,113830.0,113820.0,0.087808]
[1759217917207,1.91653552,113830.0,113820.0,0.088208]
[1759217917394,1.91653552,113830.0,113820.0,0.087808]
[1759217917598,1.91653552,113830.0,113820.0,0.096208]
[1759217917798,1.91653552,113830.0,113820.0,0.0084]
[1759217917997,2.31653552,113830.0,113820.0,0.008]
[1759217918300,2.33790834,113830.0,113820.0,0.0004]
[1759217918500,0.115708,113820.0,113810.0,0.00011246]
[1759217918702,1.94525604,113820.0,113810.0,0.12363816]
[1759217918901,1.14705604,113820.0,113810.0,0.12359816]
[1759217919306,1.94521604,113820.0,113810.0,0.12399816]
[1759217919508,1.92476322,113820.0,113810.0,0.12399816]
[1759217919710,1.99464924,113820.0,113810.0,0.12399816]
[1759217919912,1.99472924,113820.0,113810.0,0.12399816]
[1759217920211,1.99472924,113820.0,113810.0,0.00147246]
[1759217920212,1.98906924,113820.0,113810.0,0.00147246]
[1759217920403,1.98144839,113820.0,113810.0,0.00147246]
[1759217920910,1.98140839,113820.0,113810.0,0.02419246]
[1759217921105,1.98140839,113820.0,113810.0,0.03718246]
[1759217921802,1.98140839,113820.0,113810.0,0.03618246]
[1759217921998,1.98140839,113820.0,113810.0,0.12399816]
[1759217922607,1.98340839,113820.0,113810.0,0.12399816]
[1759217923812,1.98340839,113820.0,113810.0,0.03618246]
[1759217924214,1.98340839,113820.0,113810.0,0.00047246]
[1759217924419,2.38340839,113820.0,113810.0,0.00047246]
[1759217924717,2.38340839,113820.0,113810.0,7.246e-05]
[1759217925021,2.40383253,113820.0,113810.0,0.00047246]
[1759217925212,2.38340839,113820.0,113810.0,7.246e-05]
[1759217925717,2.39525363,113820.0,113810.0,0.01376732]
[1759217926312,2.41825363,113820.0,113810.0,0.00047246]
[1759217926918,2.40605363,113820.0,113810.0,0.00047246]
[1759217927119,2.43217363,113820.0,113810.0,0.00047246]
[1759217928018,2.43221363,113820.0,113810.0,0.00047246]
[1759217929014,1.63313363,113820.0,113810.0,0.00047246]
[1759217929320,2.43205363,113820.0,113810.0,0.00047246]
[1759217929620,2.43205363,113820.0,113810.0,7.246e-05]
[1759217929822,1.63309363,113820.0,113810.0,7.246e-05]
[1759217930114,1.63309363,113820.0,113810.0,0.00047246]
[1759217930415,2.43209363,113820.0,113810.0,0.00047246]
[1759217931112,2.43206497,113820.0,113810.0,0.00047246]
[1759217932019,1.63306497,113820.0,113810.0,0.00047246]
[1759217932223,2.43198497,113820.0,113810.0,0.00047246]
[1759217932421,1.63306497,113820.0,113810.0,0.00047246]
[1759217932917,2.43198497,113820.0,113810.0,0.00047246]
[1759217933712,1.23306497,113820.0,113810.0,0.00047246]
[1759217933908,1.23310497,113820.0,113810.0,0.02263246]
[1759217934113,2.03206497,113820.0,113810.0,0.03606246]
[1759217934719,2.03206497,113820.0,113810.0,0.01390246]
[1759217934918,2.03206497,113820.0,113810.0,0.00047246]
[1759217936217,1.38192975,113820.0,113810.0,0.00047246]
[1759217936419,2.03206497,113820.0,113810.0,0.00047246]
[1759217937120,2.03210497,113820.0,113810.0,0.12387816]
[1759217937321,2.03210497,113820.0,113810.0,0.08828816]
[1759217939212,0.82022936,113820.0,113810.0,0.52387816]
[1759217939418,1.92387041,113820.0,113810.0,0.52387816]
[1759217939923,2.01167831,113820.0,113810.0,0.43606246]
[1759217941826,2.01187831,113820.0,113810.0,0.43606246]
[1759217942819,2.01187831,113820.0,113810.0,0.52387816]
[1759217943325,1.92403041,113820.0,113810.0,0.52387816]
[1759217943923,1.12491041,113820.0,113810.0,0.52387816]
[1759217944124,2.01179841,113820.0,113810.0,0.52387816]
[1759217944425,2.03224572,113820.0,113810.0,0.52387816]
[1759217947019,2.03224572,113820.0,113810.0,0.52347816]
[1759217947425,2.03224572,113820.0,113810.0,0.52387816]
[1759217948026,1.94443772,113820.0,113810.0,0.52387816]
[1759217948527,1.14535772,113820.0,113810.0,0.52387816]
[1759217948719,1.94415772,113820.0,113810.0,0.52387816]
[1759217949427,2.03196572,113820.0,113810.0,0.52387816]
[1759217951525,2.03196572,113820.0,113810.0,0.43606246]
[1759217952218,2.03196572,113820.0,113810.0,7.246e-05]
[1759217952418,2.03196572,113820.0,113810.0,0.00047246]
[1759217956024,2.03196572,113820.0,113810.0,0.08828816]
[1759217956233,2.35793021,113820.0,113810.0,0.08828816]
[1759217956438,2.35793021,113820.0,113810.0,0.00047246]
[1759217956732,0.0957357,113810.0,113800.0,0.13773149]
[1759217956932,0.0957357,113810.0,113800.0,0.13853149]
[1759217956933,1.1482625,113810.0,113800.0,0.13853149]
[1759217957133,1.1482625,113810.0,113800.0,0.13773149]
[1759217957534,1.1482625,113810.0,113800.0,0.13813149]
[1759217957734,1.14832565,113810.0,113800.0,0.13813149]
[1759217957928,1.16932565,113810.0,113800.0,0.13813149]
[1759217958137,1.18032565,113810.0,113800.0,0.13773149]
[1759217958439,1.18032565,113810.0,113800.0,0.13813149]
[1759217959037,1.97852565,113810.0,113800.0,0.13813149]
[1759217959230,1.97848565,113810.0,113800.0,0.13813149]
[1759217959431,1.18032565,113810.0,113800.0,0.13813149]
[1759217959623,1.97848565,113810.0,113800.0,0.13813149]
[1759217960836,1.97848565,113810.0,113800.0,0.05031449]
[1759217961037,2.30385222,113810.0,113800.0,0.01472449]
[1759217962734,2.6952818,113810.0,113800.0,0.02807316]
[1759217963037,2.6952818,113810.0,113800.0,0.02767316]
[1759217963234,2.6952818,113810.0,113800.0,0.01432449]
[1759217963435,2.6952818,113810.0,113800.0,0.01472449]
[1759217964138,2.6953218,113810.0,113800.0,0.01472449]
[1759217964334,1.8971218,113810.0,113800.0,0.01472449]
[1759217964636,2.6953218,113810.0,113800.0,0.01472449]
[1759217966226,1.8971218,113810.0,113800.0,0.01472449]
[1759217966436,2.6953218,113810.0,113800.0,0.01472449]
[1759217966738,1.8971218,113810.0,113800.0,0.01472449]
[1759217967040,2.6953218,113810.0,113800.0,0.01472449]
[1759217967736,0.0957434,113800.0,113790.0,0.0008]
[1759217967942,1.45319539,113800.0,113790.0,0.0008]
[1759217968241,0.0957511,113790.0,113780.0,0.16993954]
[1759217968439,1.01153314,113790.0,113780.0,0.17073954]
[1759217968638,1.09936424,113790.0,113780.0,0.08290074]
[1759217969137,1.09936424,113790.0,113780.0,0.17073954]
[1759217970441,1.10936424,113790.0,113780.0,0.17073954]
[1759217970642,1.91192424,113790.0,113780.0,0.17073954]
[1759217970940,1.90192424,113790.0,113780.0,0.17073954]
[1759217971143,1.09936424,113790.0,113780.0,0.17073954]
[1759217971339,1.12756206,113790.0,113780.0,0.17073954]
[1759217971545,1.13256206,113790.0,113780.0,0.17073954]
[1759217971740,1.93488206,113790.0,113780.0,0.17073954]
[1759217972133,1.93488206,113790.0,113780.0,0.03574]
[1759217974844,1.93488206,113790.0,113780.0,0.1235789]
[1759217975743,1.93488206,113790.0,113780.0,0.03574]
[1759217977542,2.26034157,113790.0,113780.0,0.03494]
[1759217977747,2.28097227,113790.0,113780.0,0.03494]
[1759217977940,1.1532857,113790.0,113780.0,0.03534]
[1759217978140,1.934735,113790.0,113780.0,0.03534]
[1759217979654,0.1038689,113780.0,113770.0,0.08334074]
[1759217979950,1.44076861,113780.0,113770.0,0.08334074]
[1759217980151,1.44076861,113780.0,113770.0,0.08254074]
[1759217980348,1.44076861,113780.0,113770.0,0.08294074]
[1759217980746,1.44076861,113780.0,113770.0,0.03578]
[1759217980948,0.01603,113760.0,113750.0,0.10204503]
[1759217981152,2.5895639,113760.0,113750.0,0.03575]
[1759217981548,2.5895639,113760.0,113750.0,0.03615]
[1759217981747,1.7873639,113760.0,113750.0,0.03615]
[1759217981948,2.5895639,113760.0,113750.0,0.03615]
[1759217982153,1.7873639,113760.0,113750.0,0.03615]
[1759217982349,2.5895239,113760.0,113750.0,0.03615]
[1759217982551,1.7873639,113760.0,113750.0,0.03615]
[1759217982748,1.7943639,113760.0,113750.0,0.03615]
[1759217982949,2.61698598,113760.0,113750.0,0.03615]
[1759217983155,2.5964839,113760.0,113750.0,0.03575]
[1759217983347,1.7943639,113760.0,113750.0,0.03615]
[1759217983748,2.27115733,113760.0,113750.0,0.124012]
[1759217984049,1.7943639,113760.0,113750.0,0.03615]
[1759217984253,2.5964839,113760.0,113750.0,0.03615]
[1759217984754,2.27111733,113760.0,113750.0,0.03615]
[1759217984955,2.5964839,113760.0,113750.0,0.03615]
[1759217986251,1.38114303,113760.0,113750.0,0.124012]
[1759217986454,1.91047733,113760.0,113750.0,0.124012]
[1759217986656,1.10819733,113760.0,113750.0,0.124012]
[1759217986856,1.91047733,113760.0,113750.0,0.124012]
[1759217987745,1.91043733,113760.0,113750.0,0.124012]
[1759217987945,1.10819733,113760.0,113750.0,0.124012]
[1759217988149,1.91035733,113760.0,113750.0,0.124012]
[1759217988957,1.82250303,113760.0,113750.0,0.124012]
[1759217990062,1.82238303,113760.0,113750.0,0.124012]
[1759217990252,1.02034303,113760.0,113750.0,0.124012]
[1759217990755,1.82238303,113760.0,113750.0,0.124012]
[1759217992160,1.17164989,113760.0,113750.0,0.124012]
[1759217992356,2.61715037,113760.0,113750.0,0.124012]
[1759217992551,2.61715037,113760.0,113750.0,0.123612]
[1759217992862,2.61715037,113760.0,113750.0,0.102062]
[1759217993259,2.61715037,113760.0,113750.0,0.0142]
[1759217993466,2.61715037,113760.0,113750.0,0.0138]
[1759217993765,2.61715037,113760.0,113750.0,0.0142]
[1759217994063,2.61715037,113760.0,113750.0,0.102062]
[1759217994656,2.61715037,113760.0,113750.0,0.0142]
[1759217997760,2.61707037,113760.0,113750.0,0.0142]
[1759217999162,0.087862,113750.0,113740.0,0.0008]
[1759217999469,0.087862,113750.0,113740.0,0.04996352]
[1759217999470,1.09092971,113750.0,113740.0,0.04996352]
[1759217999760,1.09950418,113750.0,113740.0,0.13703322]
[1759217999965,1.81360218,113750.0,113740.0,0.1236397]
[1759218000165,1.90142418,113750.0,113740.0,0.1240397]
[1759218001058,1.90134418,113750.0,113740.0,0.1240397]
[1759218001263,1.90134418,113750.0,113740.0,0.1260397]
[1759218001556,1.09950418,113750.0,113740.0,0.1260397]
[1759218001762,1.90134418,113750.0,113740.0,0.1260397]
[1759218001962,1.90434418,113750.0,113740.0,0.1240397]
[1759218002355,1.90134418,113750.0,113740.0,0.1240397]
[1759218002556,1.90134418,113750.0,113740.0,0.1250397]
[1759218003067,1.90134418,113750.0,113740.0,0.1383582]
[1759218004058,1.25061104,113750.0,113740.0,0.1250397]
[1759218004261,1.90134418,113750.0,113740.0,0.1250397]
[1759218005865,1.90134418,113750.0,113740.0,0.03717]
[1759218006265,1.92185113,113750.0,113740.0,0.03717]
[1759218008065,1.12001113,113750.0,113740.0,0.03717]
[1759218008265,1.59612456,113750.0,113740.0,0.03717]
[1759218008470,1.59612456,113750.0,113740.0,0.1250397]
[1759218009774,1.50826256,113750.0,113740.0,0.1250397]
[1759218011269,1.59612456,113750.0,113740.0,0.1250397]
[1759218012376,1.92149113,113750.0,113740.0,0.1250397]
[1759218014681,0.38141599,113750.0,113740.0,0.1250397]
[1759218014978,0.00010904,113750.0,113740.0,0.45040627]
[1759218015177,1.1093872,113760.0,113750.0,0.123632]
[1759218015378,1.43475377,113760.0,113750.0,0.44899857]
[1759218015577,1.43475377,113760.0,113750.0,0.123632]
[1759218016177,1.1093872,113760.0,113750.0,0.123632]
[1759218016380,0.78402063,113760.0,113750.0,0.123632]
[1759218016880,0.78602063,113760.0,113750.0,0.523632]
[1759218017278,1.11456695,113760.0,113750.0,0.523632]
[1759218019378,0.78902063,113760.0,113750.0,0.84917832]
[1759218019680,0.005,113760.0,113750.0,0.91227335]
[1759218020380,0.005,113760.0,113750.0,1.27307335]
[1759218021181,0.005,113760.0,113750.0,1.20997832]
[1759218021378,0.4536543,113760.0,113750.0,0.84917832]
[1759218021577,0.3658,113760.0,113750.0,0.84917832]
[1759218021776,0.3658,113760.0,113750.0,1.65009832]
[1759218022177,0.3658,113760.0,113750.0,0.84917832]
[1759218022372,0.69134632,113760.0,113750.0,1.324552]
[1759218022884,0.69134632,113760.0,113750.0,0.523632]
[1759218023080,0.69134632,113760.0,113750.0,1.324552]
[1759218026883,0.69134632,113760.0,113750.0,0.523632]
[1759218027086,0.69134632,113760.0,113750.0,1.324312]
[1759218027686,0.69134632,113760.0,113750.0,0.523632]
[1759218027889,0.69134632,113760.0,113750.0,1.324232]
[1759218028285,0.3658,113760.0,113750.0,1.64977832]
[1759218028486,0.3658,113760.0,113750.0,0.84917832]
[1759218028781,0.3658,113760.0,113750.0,1.64977832]
[1759218029287,1.10474694,113760.0,113750.0,0.03577]
[1759218029487,1.10474694,113760.0,113750.0,0.123632]
[1759218029688,0.69134632,113760.0,113750.0,0.123632]
[1759218029885,0.69134632,113760.0,113750.0,0.124032]
[1759218030586,0.3658,113760.0,113750.0,0.124032]
[1759218030789,0.69134632,113760.0,113750.0,0.124032]
[1759218031693,0.77920062,113760.0,113750.0,0.124032]
[1759218033285,1.12558322,113760.0,113750.0,0.03617]
[1759218033488,1.52558322,113760.0,113750.0,0.03617]
[1759218033988,2.32574322,113760.0,113750.0,0.03577]
[1759218034190,2.32574322,113760.0,113750.0,0.03617]
[1759218034389,1.52558322,113760.0,113750.0,0.03617]
[1759218034788,2.32570322,113760.0,113750.0,0.03617]
[1759218035791,2.32566322,113760.0,113750.0,0.03617]
[1759218035990,2.32562322,113760.0,113750.0,0.03617]
[1759218038389,2.32562322,113760.0,113750.0,0.124032]
[1759218038791,2.32562322,113760.0,113750.0,0.03617]
[1759218039297,2.32562322,113760.0,113750.0,0.124032]
[1759218039492,1.92562322,113760.0,113750.0,0.124032]
[1759218039797,1.92550322,113760.0,113750.0,0.124032]
[1759218040193,1.12558322,113760.0,113750.0,0.124032]
[1759218040496,1.92534322,113760.0,113750.0,0.124032]
[1759218040794,1.12558322,113760.0,113750.0,0.124032]
[1759218040994,1.92530322,113760.0,113750.0,0.124032]
[1759218041396,1.92530322,113760.0,113750.0,0.03617]
[1759218042092,1.03772892,113760.0,113750.0,0.124032]
[1759218042301,0.17836933,113780.0,113770.0,0.1240966]
[1759218042302,0.0703181,113780.0,113770.0,0.1240966]
[1759218042595,0.80237554,113790.0,113780.0,0.03625]
[1759218042793,1.12792186,113790.0,113780.0,0.03625]
[1759218042993,1.93000186,113790.0,113780.0,0.03625]
[1759218043297,2.33000186,113790.0,113780.0,0.03625]
[1759218044096,2.33700186,113790.0,113780.0,0.03625]